bitfinex/quotes_ETHUSD_20240710
["timestamp","ask_amount","ask_price","bid_price","bid_amount"]
[1720578961826,0.07711672,3073.9,3073.4,0.06506296]
[1720578961993,0.07711672,3073.9,3073.5,0.55]
[1720578962313,2.4166,3074.3,3073.6,0.06505978]
[1720578962514,2.4166,3074.9,3073.6,2.42175978]
[1720578962729,2.76626825,3074.9,3073.7,0.29717598]
[1720578962890,0.07717736,3074.8,3073.7,0.29717598]
[1720578964275,0.07717736,3074.8,3073.8,0.0650596]
[1720578964706,0.07717736,3074.8,3073.7,0.36223149]
[1720578964910,0.07717736,3074.8,3073.8,1.12189315]
[1720578965688,0.07717736,3074.8,3073.9,0.0650555]
[1720578966774,0.07717736,3074.8,3073.8,1.12189315]
[1720578969220,2.30480008,3074.7,3073.8,0.57189315]
[1720578969430,2.30480008,3074.7,3073.5,7.47]
[1720578969724,2.3308,3074.5,3073.5,7.47]
[1720578969936,2.38080008,3074.5,3073.5,7.47]
[1720578970136,2.57635721,3074.4,3073.5,7.47]
[1720578970443,2.38080008,3074.3,3073.5,7.47]
[1720578970630,0.05000008,3074.2,3073.5,7.47]
[1720578970784,0.05000008,3074.2,3073.2,7.47]
[1720578970785,2.3308,3074.1,3073.2,7.47]
[1720578971120,2.3308,3074.1,3073.2,8.217]
[1720578971324,0.07464536,3074.0,3073.2,8.217]
[1720578971684,0.07464536,3074.0,3073.3,2.993]
[1720578972233,2.3308,3074.1,3073.3,2.993]
[1720578972530,2.3308,3074.1,3073.4,1.121]
[1720578972835,3.0,3074.8,3073.5,0.55]
[1720578972988,2.3051,3074.7,3073.6,0.0650623]
[1720578973325,0.07460954,3074.6,3073.6,0.0650623]
[1720578974361,2.3051,3074.7,3073.8,2.4825]
[1720578974531,2.5239825,3075.0,3073.9,0.85325]
[1720578974734,0.07482996,3074.9,3073.9,0.85325]
[1720578974941,0.4156655,3074.9,3073.9,3.85325]
[1720578977116,0.4156655,3074.9,3073.9,3.91830209]
[1720578977316,0.4156655,3074.9,3074.0,0.64008021]
[1720578977523,0.4156655,3074.9,3074.1,0.61504644]
[1720578977822,0.34083554,3074.9,3074.1,0.61504644]
[1720578978528,0.34083554,3074.9,3074.1,0.55]
[1720578978732,2.4746,3074.8,3073.9,3.30325]
[1720578978967,0.07504205,3074.7,3073.9,0.30325]
[1720578979258,0.07504205,3074.7,3073.7,3.0]
[1720578979472,0.07504205,3074.7,3073.8,0.55]
[1720578981773,0.07504205,3074.7,3073.8,0.61505379]
[1720578982077,0.07504205,3074.7,3073.9,2.4346]
[1720578982281,0.07504205,3074.7,3074.0,0.61504687]
[1720578982433,0.07504205,3074.7,3074.1,0.60496469]
[1720578982639,0.34083554,3074.9,3074.2,0.61504467]
[1720578983562,0.34083554,3074.9,3074.3,0.06504461]
[1720578983933,0.07495391,3074.8,3074.3,0.06504461]
[1720578984578,0.07495391,3074.8,3074.3,0.06504464]
[1720578984787,0.07495391,3074.8,3074.4,0.55]
[1720578985274,0.07495391,3074.8,3074.2,0.55]
[1720578985651,0.34083554,3074.9,3074.2,0.55]
[1720578986244,0.34083554,3074.9,3074.2,0.61504236]
[1720578986445,0.34083554,3074.9,3074.2,0.55]
[1720578987175,0.34083554,3074.9,3074.3,2.42374179]
[1720578987378,0.07508335,3074.8,3074.4,0.84737418]
[1720578987742,0.07508335,3074.8,3074.5,0.06504156]
[1720578988083,0.07508335,3074.8,3074.6,0.55]
[1720578988286,0.0616825,3075.0,3074.6,0.55]
[1720578988777,0.0616825,3075.0,3074.4,0.29737418]
[1720578988937,0.0616825,3075.0,3073.8,9.63]
[1720578989139,0.07271003,3074.9,3073.8,9.63]
[1720578989370,0.0616825,3075.0,3073.8,9.63]
[1720578989575,0.07285596,3074.9,3073.8,9.63]
[1720578989878,0.0616825,3075.0,3074.1,0.747]
[1720578990277,0.07283669,3074.9,3074.1,0.747]
[1720578990577,0.0616825,3075.0,3074.1,3.747]
[1720578990950,0.0616825,3075.0,3074.2,0.55]
[1720578994577,0.0616825,3075.0,3074.3,2.3554]
[1720578994782,0.0616825,3075.0,3074.4,0.84054]
[1720578997565,0.0616825,3075.0,3074.4,3.84054]
[1720578998093,0.0616825,3075.0,3074.5,0.06503958]
[1720578998303,0.0616825,3075.0,3074.7,2.4641]
[1720578998453,0.0616825,3075.0,3074.8,0.61502999]
[1720578998655,0.0616825,3075.0,3074.9,0.607913]
[1720578998850,0.0616825,3075.0,3074.9,1.157913]
[1720579000370,0.0616825,3075.0,3074.9,1.22293697]
[1720579010797,0.0616825,3075.0,3074.9,3.61953697]
[1720579010984,2.2519,3076.5,3074.9,6.61953697]
[1720579011187,0.34066316,3076.2,3075.2,2.347]
[1720579011500,0.34066316,3076.2,3075.6,2.347]
[1720579011702,2.2519,3076.8,3075.7,0.29971154]
[1720579011920,0.06867615,3076.1,3075.8,0.61501111]
[1720579012080,0.34063299,3076.6,3075.8,0.61501111]
[1720579012281,0.34063299,3076.6,3076.1,2.347]
[1720579012493,2.2569,3077.6,3076.1,2.347]
[1720579012494,2.2569,3077.6,3076.2,1.08935815]
[1720579012687,2.2569,3077.6,3076.5,2.347]
[1720579012894,0.34060711,3077.2,3076.6,0.61499229]
[1720579013418,0.06441749,3077.1,3076.6,0.61499229]
[1720579013716,0.06441749,3077.1,3076.6,3.61499229]
[1720579013880,0.06441749,3077.1,3076.6,4.21119152]
[1720579015202,0.34060711,3077.2,3076.6,6.60779152]
[1720579016892,0.06456639,3077.1,3076.6,6.60779152]
[1720579017094,0.06456639,3077.1,3076.9,2.347]
[1720579017295,0.005,3077.6,3077.0,0.61498516]
[1720579017494,0.005,3077.6,3077.1,0.29619852]
[1720579017708,0.06433689,3077.5,3077.2,0.61498378]
[1720579018083,0.06433689,3077.5,3077.2,0.55]
[1720579019334,0.06433689,3077.5,3077.2,0.61498389]
[1720579019547,2.4739,3077.4,3077.0,3.0]
[1720579019742,0.06433689,3077.5,3076.6,0.06498896]
[1720579019951,0.06443888,3077.3,3076.6,0.29968896]
[1720579020234,0.005,3077.6,3076.6,3.2347]
[1720579020396,0.3405898,3077.7,3076.6,3.2347]
[1720579020397,0.06451055,3077.2,3076.6,3.2347]
[1720579020598,2.4590825,3078.1,3076.8,2.4358]
[1720579020799,0.06451055,3078.0,3076.9,0.61498377]
[1720579021098,0.06451055,3078.0,3076.9,3.61498377]
[1720579021323,0.31686986,3078.0,3077.0,0.60507838]
[1720579021637,0.31686986,3078.0,3077.1,0.61498375]
[1720579022228,0.06451055,3078.0,3077.1,0.55]
[1720579023729,0.06451055,3078.0,3076.9,3.0]
[1720579023730,2.3426,3077.9,3076.9,3.0]
[1720579023940,2.39260008,3077.9,3076.6,3.0]
[1720579024251,2.3426,3077.7,3076.1,4.7628]
[1720579024445,2.3426,3077.7,3076.2,3.0]
[1720579024751,0.06454361,3077.6,3076.2,3.0649937]
[1720579025048,0.24071436,3077.5,3076.3,0.78277937]
[1720579025542,0.06454361,3077.4,3076.3,0.78277937]
[1720579025745,2.3426,3077.7,3076.3,0.78277937]
[1720579025905,2.57686,3077.7,3076.4,0.93477732]
[1720579026105,0.06454361,3077.6,3076.4,0.99977104]
[1720579026331,0.06454361,3077.6,3076.6,2.2535]
[1720579026528,0.06454361,3077.6,3076.7,1.01005]
[1720579026818,0.06454361,3077.6,3076.8,0.0649863]
[1720579027019,0.06454361,3077.6,3076.9,0.55]
[1720579027263,2.3426,3077.7,3076.9,0.55]
[1720579027980,2.3426,3077.7,3076.8,0.55]
[1720579028147,2.3426,3077.7,3076.8,1.12785363]
[1720579030932,2.5091825,3078.1,3076.8,1.12785363]
[1720579031131,2.5091825,3078.1,3076.8,1.19283259]
[1720579031447,0.06448021,3078.0,3076.9,0.46528826]
[1720579031622,0.06448021,3078.0,3077.0,0.55]
[1720579032642,2.3975,3077.9,3077.0,0.55]
[1720579033157,0.06450777,3077.8,3077.0,0.55]
[1720579033524,2.3975,3077.9,3077.0,0.55]
[1720579033775,2.3975,3077.9,3077.1,0.33622883]
[1720579033935,0.06450777,3077.8,3077.2,0.55]
[1720579036169,0.06450777,3077.8,3077.0,0.55]
[1720579036469,2.3975,3077.9,3077.0,0.61498404]
[1720579036858,0.06451604,3077.8,3077.0,0.55]
[1720579037089,5.782,3078.9,3077.0,0.55]
[1720579037090,0.16539152,3079.2,3077.1,2.36857904]
[1720579037288,3.0,3080.4,3078.9,2.3036]
[1720579037580,3.0,3080.4,3078.8,2.347]
[1720579037581,2.4909,3080.0,3079.0,0.55]
[1720579037734,0.30552384,3079.8,3079.0,0.55]
[1720579038138,0.30552384,3079.8,3078.8,0.61494768]
[1720579038340,0.30552384,3079.8,3078.8,0.55]
[1720579039378,0.30552384,3079.8,3078.3,3.61327384]
[1720579039539,0.30552384,3079.8,3078.4,0.55]
[1720579040263,0.30552384,3079.8,3078.4,1.16327384]
[1720579040483,0.05000008,3079.7,3078.4,1.16327384]
[1720579040684,0.30552384,3079.8,3078.5,0.41632738]
[1720579040980,0.30552384,3079.8,3078.6,0.55]
[1720579040981,0.05011415,3079.6,3078.6,0.55]
[1720579041132,0.24959,3079.8,3078.6,0.55]
[1720579041336,0.05011415,3079.5,3078.6,0.55]
[1720579041551,0.24959,3079.8,3078.6,0.55]
[1720579041790,0.05011415,3079.4,3078.7,0.06495081]
[1720579041993,0.24959,3079.8,3078.8,0.55]
[1720579042160,0.24959,3079.8,3078.8,0.90752247]
[1720579042161,0.05003158,3079.3,3078.8,0.90752247]
[1720579042363,0.24959,3079.8,3078.8,0.90752247]
[1720579042561,0.05003158,3079.2,3078.9,0.06494531]
[1720579042762,0.005,3079.9,3078.9,0.06494531]
[1720579042763,0.005,3079.9,3079.0,0.55]
[1720579042947,0.005,3079.9,3079.1,0.06494335]
[1720579043273,0.005,3079.9,3079.0,0.98947416]
[1720579043274,0.05003158,3079.8,3079.2,0.55]
[1720579043479,0.05003158,3079.8,3079.0,3.33647416]
[1720579043480,0.05003158,3079.8,3079.0,3.40140959]
[1720579043678,0.005,3079.9,3079.3,0.06493543]
[1720579043879,0.005,3079.9,3079.4,0.55]
[1720579044080,0.05003158,3079.8,3079.4,0.55]
[1720579044577,0.05003158,3079.8,3079.3,0.36782093]
[1720579044578,0.05003158,3079.8,3079.1,3.0]
[1720579044787,0.05003158,3079.8,3079.2,0.55]
[1720579044950,0.05003158,3079.8,3079.1,0.55]
[1720579045378,0.05003158,3079.8,3079.0,0.55]
[1720579045600,0.05003158,3079.8,3079.1,0.41994183]
[1720579045766,0.05003158,3079.8,3079.2,0.55]
[1720579045971,0.005,3079.9,3079.4,2.347]
[1720579046281,0.005,3079.9,3079.5,2.93552752]
[1720579046653,0.005,3079.9,3079.6,3.0]
[1720579046854,0.005,3079.9,3079.7,1.20848027]
[1720579047256,0.005,3079.9,3079.7,0.55]
[1720579047707,0.005,3079.9,3079.6,0.55]
[1720579048055,0.005,3079.9,3079.4,0.55]
[1720579048494,0.005,3079.9,3079.5,0.06493276]
[1720579048787,0.005,3079.9,3079.6,2.8706]
[1720579048987,2.2993,3081.0,3079.7,3.29355328]
[1720579049294,0.05029576,3080.9,3079.8,0.55]
[1720579052325,0.05029576,3080.9,3079.9,0.06492661]
[1720579053223,0.1116825,3081.1,3080.2,2.347]
[1720579053388,2.3857,3081.0,3080.1,3.0]
[1720579053725,2.43518226,3081.0,3080.2,0.55]
[1720579054008,2.43518226,3081.0,3079.7,0.29355328]
[1720579054009,0.24973825,3080.9,3079.9,0.55]
[1720579054325,0.05000008,3080.8,3079.8,0.55]
[1720579054616,0.31797431,3080.8,3079.8,0.55]
[1720579054780,0.31797431,3080.8,3079.8,0.61492839]
[1720579054987,0.04948226,3080.8,3079.8,0.61492839]
[1720579055518,2.3857,3081.0,3079.8,0.55]
[1720579055700,2.3857,3081.0,3079.9,0.06492124]
[1720579056014,0.04941626,3080.9,3080.0,0.55]
[1720579056367,0.04941626,3080.9,3079.8,0.55]
[1720579056820,0.04941626,3080.9,3079.9,0.06492125]
[1720579057117,0.04941626,3080.9,3080.0,0.55]
[1720579057271,0.04941626,3080.9,3080.0,0.61492126]
[1720579057470,0.04941626,3080.9,3080.1,0.36149213]
[1720579057672,0.04941626,3080.9,3080.2,0.55]
[1720579058185,0.09941634,3080.9,3080.2,0.55]
[1720579058383,0.09941634,3080.9,3079.6,3.0]
[1720579058384,0.04941626,3080.9,3079.6,3.0]
[1720579058598,0.04941626,3080.9,3079.7,0.3]
[1720579058599,0.24351163,3080.8,3079.7,0.3]
[1720579058912,0.04949053,3080.7,3079.2,7.47]
[1720579059112,0.09949061,3080.7,3079.2,7.47]
[1720579060016,0.09949061,3080.7,3079.1,2.6281]
[1720579060017,0.09949061,3080.7,3079.3,3.55]
[1720579060320,0.04949053,3080.7,3079.4,3.355]
[1720579060471,0.04949053,3080.7,3079.5,0.55]
[1720579060808,0.04949053,3080.7,3079.5,3.55]
[1720579066016,0.09949061,3080.7,3079.5,3.55]
[1720579066222,0.04949053,3080.7,3079.6,0.6252]
[1720579066508,2.4932,3080.6,3079.6,0.6252]
[1720579066719,2.54257223,3080.6,3079.6,3.6252]
[1720579066924,2.82118062,3080.6,3079.6,0.6252]
[1720579067108,2.82118062,3080.6,3079.2,3.0]
[1720579067277,2.82118062,3080.6,3079.3,0.55]
[1720579067278,2.4932,3080.5,3079.3,0.55]
[1720579067793,2.4932,3080.5,3079.1,3.355]
[1720579067794,0.04933649,3080.4,3079.2,0.55]
[1720579068123,0.04933649,3080.4,3079.3,0.4554347]
[1720579068324,0.04933649,3080.4,3079.4,0.55]
[1720579068528,2.4932,3080.5,3079.4,0.55]
[1720579068820,2.4932,3080.5,3079.5,0.06493027]
[1720579069020,2.4932,3080.5,3079.3,2.7375]
[1720579069021,2.4932,3080.5,3079.6,0.55]
[1720579069310,0.04933649,3080.4,3079.6,0.55]
[1720579069511,2.4932,3080.5,3079.4,0.55]
[1720579069725,2.4932,3080.5,3079.5,0.32875]
[1720579070016,2.4932,3080.5,3079.6,0.55]
[1720579070017,0.04932273,3080.4,3079.6,0.55]
[1720579070700,0.05000008,3080.4,3079.5,0.32875]
[1720579070893,2.2952,3080.2,3079.1,3.355]
[1720579071092,2.2952,3080.2,3078.3,9.63]
[1720579071093,2.2952,3080.0,3078.6,7.47]
[1720579071294,0.05000008,3079.9,3078.7,0.747]
[1720579071816,0.05000008,3079.9,3078.6,7.47]
[1720579071817,2.37753649,3079.8,3078.6,7.47]
[1720579071989,2.3282,3079.6,3078.6,7.47]
[1720579072181,2.377,3079.4,3078.6,7.47]
[1720579072383,2.377,3079.4,3077.7,2.347]
[1720579072384,0.29270009,3079.3,3077.7,2.347]
[1720579072612,0.29153289,3079.3,3077.7,2.347]
[1720579073239,0.04883288,3079.3,3077.8,0.06496359]
[1720579074631,0.04883288,3079.3,3077.9,0.55]
[1720579074945,0.04883288,3079.3,3078.0,0.06495561]
[1720579075149,0.04883288,3079.3,3078.1,0.55]
[1720579075642,0.04883288,3079.3,3078.2,0.06495562]
[1720579075831,0.04883288,3079.3,3078.1,0.55]
[1720579075832,0.04883288,3079.3,3078.3,0.55]
[1720579076008,0.04883288,3079.3,3078.1,0.55]
[1720579076204,0.04883288,3079.3,3078.0,0.55]
[1720579077206,0.04883288,3079.3,3078.1,0.06495565]
[1720579077402,0.04883288,3079.3,3078.2,0.55]
[1720579077648,0.04883288,3079.3,3078.3,0.06495561]
[1720579077834,0.04883288,3079.3,3078.4,0.55]
[1720579078315,0.04883288,3079.3,3078.5,0.36149556]
[1720579078523,0.04883288,3079.3,3078.6,0.55]
[1720579079119,0.04883288,3079.3,3078.1,3.0]
[1720579079320,2.367,3079.2,3077.8,3.0]
[1720579079537,2.66358338,3079.1,3077.8,0.3]
[1720579079736,2.66358338,3079.1,3077.5,0.06496511]
[1720579079925,0.0486016,3079.0,3077.3,4.86586482]
[1720579080252,0.0486016,3079.0,3077.1,0.06496752]
[1720579080253,2.41700008,3078.9,3077.1,0.06496752]
[1720579080455,2.367,3078.9,3077.1,0.06496752]
[1720579080650,2.367,3078.9,3077.1,3.06496752]
[1720579080859,0.0486016,3078.8,3077.1,3.06496752]
[1720579081073,0.0486016,3078.8,3077.2,0.57768141]
[1720579081868,2.367,3078.7,3077.2,0.57768141]
[1720579082039,2.41700008,3078.6,3076.8,2.4539]
[1720579082359,2.41544461,3078.6,3076.8,2.51887888]
[1720579082592,2.4767,3078.4,3076.9,0.25188789]
[1720579082725,2.4767,3078.2,3076.5,0.36484654]
[1720579082927,2.4767,3078.2,3076.2,3.02181894]
[1720579082928,2.4767,3078.0,3076.2,2.41198747]
[1720579083165,2.4767,3078.0,3076.6,0.06498747]
[1720579083362,0.04822431,3077.9,3076.6,0.06498747]
[1720579084928,0.04822431,3077.9,3076.7,0.55]
[1720579085129,0.04822431,3077.9,3076.8,0.06498597]
[1720579085356,0.04822431,3077.9,3076.9,0.55]
[1720579085664,0.04822431,3077.9,3077.0,0.06498597]
[1720579085881,0.04822431,3077.9,3077.1,0.55]
[1720579086032,2.4767,3078.0,3077.2,0.0649822]
[1720579086228,2.4767,3078.0,3077.3,0.55]
[1720579086491,0.04791017,3077.9,3077.4,0.06498202]
[1720579086627,0.04791017,3077.9,3077.5,0.55]
[1720579086831,2.4298,3078.4,3077.6,0.06497347]
[1720579087028,2.4298,3078.4,3077.7,0.55]
[1720579087029,0.04787986,3077.8,3077.7,0.55]
[1720579087332,0.04789916,3077.8,3077.7,0.55]
[1720579087678,0.04789916,3077.8,3077.1,3.0]
[1720579087679,2.4298,3078.4,3077.1,3.0]
[1720579087857,0.04789916,3077.8,3077.2,1.0847]
[1720579088028,2.4298,3078.4,3077.3,0.06497718]
[1720579088250,2.4298,3078.4,3077.4,0.55]
[1720579088613,0.04789916,3078.3,3077.5,0.06497708]
[1720579088774,0.04789916,3078.3,3077.6,0.55]
[1720579089090,2.4298,3078.4,3077.7,0.06497132]
[1720579089246,0.04803416,3078.2,3077.8,0.55]
[1720579089449,0.04803416,3078.2,3077.9,0.06497116]
[1720579089697,2.4298,3078.4,3077.9,0.06497116]
[1720579089992,0.04803416,3078.1,3077.8,0.55]
[1720579090164,2.4298,3078.4,3077.7,0.55]
[1720579090491,2.4298,3078.4,3077.7,1.60349723]
[1720579091600,0.04805623,3078.3,3077.7,1.60349723]
[1720579091962,2.4298,3078.4,3077.7,1.60349723]
[1720579092268,0.04805623,3078.2,3077.7,1.60349723]
[1720579092597,2.4298,3078.4,3077.8,0.46684727]
[1720579092765,2.4298,3078.4,3077.7,1.60349723]
[1720579092955,0.04805623,3078.3,3077.7,1.60349723]
[1720579093468,0.04805623,3078.3,3077.7,1.05349723]
[1720579093666,0.04805623,3078.3,3077.6,3.0]
[1720579094055,0.04805623,3078.3,3077.5,7.47]
[1720579095695,0.04805623,3078.3,3077.2,10.47]
[1720579095896,2.2577,3078.2,3077.3,0.55]
[1720579096257,2.30576723,3078.1,3077.3,0.55]
[1720579097302,2.30576723,3078.1,3077.2,7.47]
[1720579098309,2.2577,3077.9,3077.2,7.47]
[1720579098513,0.05000008,3078.0,3076.5,9.63]
[1720579098514,2.2577,3077.7,3076.7,7.47]
[1720579098825,2.30770008,3077.6,3076.7,7.47]
[1720579098984,2.35560477,3077.6,3076.7,7.47]
[1720579099174,2.2577,3077.5,3076.7,7.47]
[1720579099371,5.87990477,3077.6,3076.7,7.47]
[1720579099372,2.2577,3077.3,3076.7,7.47]
[1720579099622,2.2577,3077.3,3076.2,7.47]
[1720579099835,2.2577,3077.3,3075.9,7.47]
[1720579099836,2.30770008,3077.2,3075.9,7.47]
[1720579099970,2.2577,3077.0,3076.0,0.747]
[1720579100298,2.2577,3077.0,3075.6,7.47]
[1720579100299,0.04751328,3076.9,3075.6,7.47]
[1720579101720,0.04751328,3076.9,3075.7,3.0]
[1720579102910,0.04751328,3076.9,3075.8,0.06500991]
[1720579103093,0.04751328,3076.9,3075.9,0.85650099]
[1720579103514,0.04751328,3076.9,3076.0,0.0650092]
[1720579103718,0.04751328,3076.9,3076.1,0.55]
[1720579103917,2.3418,3077.6,3076.2,0.06499614]
[1720579104122,2.3418,3077.6,3076.3,0.94767343]
[1720579104289,2.4767,3078.2,3076.3,0.94767343]
[1720579104631,2.4767,3078.2,3076.4,0.36484654]
[1720579104632,0.04546341,3078.1,3076.4,0.36484654]
[1720579104832,0.04546341,3078.1,3076.5,2.96198486]
[1720579105033,0.04546341,3078.1,3076.6,3.33268314]
[1720579105187,2.4767,3078.2,3076.7,0.61498452]
[1720579105387,0.04546341,3078.0,3076.8,0.06498408]
[1720579105599,2.4767,3078.2,3076.9,0.55]
[1720579105812,0.04546341,3077.9,3077.0,0.06498393]
[1720579106012,2.4767,3078.2,3077.1,0.55]
[1720579106215,0.04577778,3077.8,3077.1,0.55]
[1720579106409,0.04577778,3077.8,3076.9,0.55]
[1720579106597,0.05000008,3078.1,3076.9,1.09852822]
[1720579107043,0.04577778,3078.0,3076.9,1.09852822]
[1720579107345,0.04577778,3078.0,3077.0,0.06498896]
[1720579107505,0.04577778,3078.0,3076.9,1.09852822]
[1720579108467,2.3656,3077.9,3076.7,3.0]
[1720579108626,2.3656,3077.9,3076.8,0.55]
[1720579108825,2.3656,3077.7,3076.6,7.80268314]
[1720579109040,2.3656,3077.6,3076.6,7.80268314]
[1720579109351,0.04578878,3077.5,3076.6,7.80268314]
[1720579112082,0.04578878,3077.5,3076.7,0.55]
[1720579112232,0.04578878,3077.5,3076.8,0.83526831]
[1720579112429,0.04578878,3077.5,3076.9,0.55]
[1720579112629,2.3656,3077.6,3076.8,0.83526831]
[1720579112828,2.3656,3077.6,3076.6,7.80268314]
[1720579113137,0.04570608,3077.5,3076.7,0.55]
[1720579113370,0.04570608,3077.5,3076.7,0.61499651]
[1720579114007,0.04570608,3077.5,3076.7,0.55]
[1720579114206,0.04570608,3077.5,3076.8,0.83526831]
[1720579115758,0.04570608,3077.5,3076.7,0.55]
[1720579116188,0.04570608,3077.5,3076.6,7.80268314]
[1720579116189,2.4345,3077.4,3076.6,7.47]
[1720579116396,2.4711,3077.2,3075.8,7.47]
[1720579116561,0.25211001,3077.1,3075.9,0.747]
[1720579116761,0.05000008,3077.0,3075.9,0.747]
[1720579116982,2.4711,3076.9,3075.9,0.747]
[1720579117169,0.05000008,3076.8,3075.9,0.747]
[1720579117370,0.05000008,3076.8,3076.0,0.8217]
[1720579117582,0.04568678,3076.8,3076.0,0.8217]
[1720579118178,0.04568678,3076.8,3076.1,0.06501171]
[1720579118594,0.04568678,3076.8,3076.0,0.8217]
[1720579118776,2.4711,3076.9,3076.0,0.8217]
[1720579118777,2.4711,3076.9,3076.2,0.06500201]
[1720579118974,2.4711,3076.9,3076.3,0.55]
[1720579119177,2.4711,3076.9,3076.1,0.38217]
[1720579119178,2.4711,3076.9,3076.2,0.55]
[1720579119397,2.4711,3076.9,3076.1,0.38217]
[1720579119398,0.04406476,3076.8,3076.1,0.38217]
[1720579121322,0.04406476,3076.8,3076.2,0.06501071]
[1720579122018,0.04406476,3076.8,3076.3,0.55]
[1720579123114,0.04406476,3076.8,3076.4,0.06500196]
[1720579123328,2.392,3077.3,3076.4,0.06500196]
[1720579123484,0.04410889,3077.2,3076.4,0.06500196]
[1720579123998,0.04410889,3077.2,3076.5,0.55]
[1720579124378,2.392,3077.3,3076.6,0.06499667]
[1720579124719,2.392,3077.3,3076.7,0.55]
[1720579125122,2.392,3077.3,3076.4,0.55]
[1720579125296,2.392,3077.3,3076.5,0.06499663]
[1720579125624,2.3878,3078.0,3076.6,0.55]
[1720579125938,2.3878,3078.0,3076.7,0.06498649]
[1720579125939,0.04434608,3077.9,3076.7,0.06498649]
[1720579126220,0.04434608,3077.9,3076.8,0.55]
[1720579126421,0.04434608,3077.9,3076.9,0.06498801]
[1720579126588,0.28756069,3077.9,3077.0,0.55]
[1720579127220,2.4805,3077.8,3076.4,0.30649966]
[1720579127383,2.52494533,3077.8,3076.5,0.61499502]
[1720579128327,2.52494533,3077.8,3076.5,0.55]
[1720579128626,2.4805,3077.8,3076.6,0.06498804]
[1720579128810,2.4805,3077.8,3076.7,0.55]
[1720579129023,2.4805,3077.8,3076.8,0.06498805]
[1720579129186,2.4805,3077.8,3076.9,0.55]
[1720579129383,2.4805,3077.8,3077.0,0.3031]
[1720579129730,2.4805,3077.8,3077.1,0.55]
[1720579129896,0.0445749,3077.7,3077.1,0.55]
[1720579130084,2.4805,3077.8,3077.1,0.55]
[1720579130284,0.0445749,3077.7,3077.1,0.55]
[1720579130484,2.4805,3077.8,3077.1,0.55]
[1720579130734,0.0445749,3077.7,3077.1,0.55]
[1720579131336,2.4805,3077.8,3077.1,0.55]
[1720579131532,0.0445749,3077.7,3077.1,0.93531]
[1720579131690,2.4805,3077.8,3077.1,0.93531]
[1720579131887,0.04470443,3077.7,3077.1,0.55]
[1720579132225,2.4302,3078.5,3077.2,0.06498806]
[1720579132425,2.4302,3078.5,3077.3,0.55]
[1720579132624,0.04470443,3078.4,3077.3,0.55]
[1720579132940,2.4302,3078.5,3077.2,3.55]
[1720579133943,0.04469892,3078.4,3077.2,3.55]
[1720579135043,0.34048964,3078.3,3077.2,3.55]
[1720579135246,0.34048964,3078.3,3077.3,1.102]
[1720579137263,0.34048964,3078.3,3077.1,7.47]
[1720579137264,2.4478,3078.1,3077.1,7.47]
[1720579137551,0.04474853,3078.0,3077.1,7.47]
[1720579139857,0.04474853,3078.0,3077.2,0.55]
[1720579143585,0.04474853,3078.0,3077.1,7.47]
[1720579143788,0.04474853,3078.0,3077.1,8.217]
[1720579143951,0.04474853,3078.0,3077.1,10.4906]
[1720579145291,0.04474853,3078.0,3077.2,3.06498891]
[1720579145495,0.04474853,3078.0,3077.2,3.0]
[1720579145666,0.04474853,3078.0,3077.3,0.55]
[1720579145983,0.04474853,3078.0,3077.4,0.355]
[1720579146961,0.05000008,3077.9,3077.1,7.47]
[1720579147168,0.04474853,3078.0,3077.1,7.47]
[1720579147366,0.04467689,3077.8,3077.2,2.53719184]
[1720579147552,2.4302,3078.5,3077.3,1.06570122]
[1720579147755,0.04467413,3078.4,3077.3,4.06570122]
[1720579148084,0.04467413,3078.4,3077.4,0.65379012]
[1720579148298,0.04467413,3078.4,3077.5,0.06498203]
[1720579149396,0.04467413,3078.4,3077.6,0.55]
[1720579151527,0.04467413,3078.4,3077.4,0.65379012]
[1720579151710,0.05000008,3078.3,3077.4,0.65379012]
[1720579152022,0.04482845,3078.2,3077.5,0.46545093]
[1720579152236,0.04482845,3078.2,3077.1,7.47]
[1720579152237,0.09482853,3078.2,3077.1,7.47]
[1720579152521,2.3929,3078.1,3077.1,7.47]
[1720579152720,0.24877285,3078.0,3077.1,7.47]
[1720579152936,0.29369776,3078.0,3077.1,7.47]
[1720579153139,0.72297713,3078.0,3077.1,7.47]
[1720579153431,2.3929,3077.7,3077.1,7.47]
[1720579153642,2.3929,3077.7,3076.8,7.47]
[1720579153643,2.44290008,3077.7,3076.8,7.47]
[1720579154136,0.04465759,3077.6,3076.8,7.47]
[1720579156296,2.3929,3077.7,3076.8,7.47]
[1720579156499,0.04453354,3077.5,3076.9,0.747]
[1720579156831,2.3929,3077.7,3076.9,0.747]
[1720579156832,0.04453354,3077.4,3076.9,0.747]
[1720579157210,2.3929,3077.7,3076.9,0.747]
[1720579157397,2.3929,3077.7,3077.0,0.8217]
[1720579157597,0.04454457,3077.6,3077.0,0.8217]
[1720579159288,0.09454465,3077.6,3076.8,7.47]
[1720579159510,0.04454457,3077.6,3076.8,7.47]
[1720579160541,0.47402187,3077.6,3076.8,7.47]
[1720579160689,0.47402408,3077.6,3076.8,7.47]
[1720579160889,0.04454457,3077.6,3076.9,0.747]
[1720579162622,0.04454457,3077.6,3076.9,0.8119937]
[1720579162797,0.04454457,3077.6,3076.9,0.81199247]
[1720579162997,0.04454457,3077.6,3076.9,0.747]
[1720579163199,2.3929,3077.7,3076.9,0.747]
[1720579163596,0.04436814,3077.6,3076.9,0.747]
[1720579163894,0.04436814,3077.6,3077.0,0.76402289]
[1720579166537,0.04436814,3077.6,3076.8,7.47]
[1720579166699,0.47379445,3077.6,3076.8,7.47]
[1720579166896,0.47384394,3077.6,3076.8,7.47]
[1720579170052,0.47384394,3077.6,3076.4,10.47]
[1720579170348,0.47387918,3077.6,3076.4,10.47]
[1720579170548,0.04436814,3077.6,3076.4,10.47]